[Event "Hungarian Youth-ch U16 2022"]
[Site "Eger"]
[Date "2022.07.24"]
[Round "2.4"]
[White "Szikszai, Bertalan"]
[Black "Fule, Simon"]
[Result "1-0"]
[ECO "C59"]
[WhiteElo "2153"]
[BlackElo "2271"]
[Annotator "TA"]
[PlyCount "117"]
[EventDate "2022.07.21"]
[EventType "tourn"]
[EventCountry "HUN"]
[SourceTitle "playchess.com"]
[Source "ChessBase"]
[SourceQuality "1"]
[TimeControl "40/5400+30:1800+30"]

{[%evp 19,117,0,0,0,0,0,0,0,0,0,1,0,7,-10,0,-19,12,-14,4,0,20,9,19,28,22,17,23,27,17,14,22,-8,37,41,200,191,199,77,201,195,225,191,207,213,206,189,182,148,200,99,100,101,115,101,337,318,372,372,359,358,631,616,1160,1126,1020,1018,823,822,12817,12822,12822,12820,11605,1846,12536,6102,2532,1315,772,0,1496,1431,12837,12837,12839,12839,12839,12839,12839,12839,12839,12839,12850,12847,12848,12847,12848,12848,12848,12849]} 1. e4 {[%emt 0:00:34]} e5 {[%emt 0:00:37]} 2. Nf3 {[%emt 0:00:06]} Nc6 {[%emt 0:00:06]} 3. Bc4 {[%emt 0:00:09]} Nf6 {[%emt 0:00:20]} 4. Ng5 {[%emt 0:00:21]} d5 {[%emt 0:00:07]} 5. exd5 {[%emt 0:00:05]} Na5 {[%emt 0:00:10]} 6. Bb5+ {[%emt 0:00:10]} c6 {[%emt 0:00:07]} 7. dxc6 {[%emt 0:00:11]} bxc6 {[%emt 0:00:07]} 8. Be2 {[%emt 0:00:52]} h6 {[%emt 0:00:57]} 9. Nf3 {[%emt 0:00:32] 9.Nh3 is more fashionable.} e4 {[%emt 0:00:19]} 10. Ne5 {[%emt 0:00:10]} Bc5 {[%emt 0:00:28] aiming for ...Qd4.} 11. O-O {[%emt 0:01:26] C59: Two Knights: 4 Ng5 d5 5 exd5 Na5 5 Bb5+ c6 6 dxc6 bxc6 7 Be2.} Qd6 {[%emt 0:00:22]} 12. d4 {[%emt 0:03:53]} Qxd4 {[%emt 0:01:21]} 13. Qxd4 {[%emt 0:01:21] The position is equal.} Bxd4 {[%emt 0:00:08]} 14. Nc4 {[%emt 0:00:33]} Nxc4 {[%emt 0:00:20]} 15. Bxc4 {[%emt 0:00:13]} O-O {[%emt 0:00:15] [#]} 16. h3 $146 {[%emt 0:02:10]} ({Predecessor:} 16. Rd1 Be5 17. Nc3 Bg4 18. Re1 Bf5 19. h3 Rfd8 20. g4 Bh7 21. f4 Bxc3 22. bxc3 h5 23. Be2 {½-½ (23) Cvak,R (2370)-Susla,V (2318) LSS email 2019}) 16... Bf5 {[%emt 0:12:44]} 17. Re1 {[%emt 0:14:06]} Rad8 {[%emt 0:11:16][%cal Oe4e3]} 18. Bb3 {[%emt 0:09:12]} Nd5 {[%emt 0:21:09][%cal Oe4e3,Bf6d5,Bd5e3,Be3c2][%mdl 32]} (18... e3 $5 19. fxe3 Rfe8 $11) 19. Na3 {[%emt 0:18:13][%cal Bb1a3,Ba3c4,Bc4a5,Ba5b7,Bb7c5][%mdl 32]} Rfe8 {[%emt 0:13:03]} (19... e3 $5 20. fxe3 Bc5 $11) 20. Nc4 {[%emt 0:05:52] Against e3} Bg6 {[%emt 0:08:35]} 21. c3 {[%emt 0:17:55]} Bc5 {[%emt 0:04:04]} 22. Na5 $1 {[%emt 0:04:53]} e3 {[%emt 0:07:27]} 23. Bxe3 {[%emt 0:02:09]} Nxe3 {[%emt 0:09:25]} (23... Bxe3 24. Nxc6 (24. fxe3 Nxe3 25. Re2 Nf5 $16) 24... Rd6 25. fxe3 $16) 24. Nb7 {[%emt 0:03:10]} Nc2 {[%emt 0:02:49]} 25. Bxc2 {[%emt 0:04:40]} Rxe1+ {[%emt 0:00:36]} (25... Bxf2+ $5 26. Kxf2 Rd2+ 27. Kf3 Rxe1 28. Rxe1 Bxc2 $11) 26. Rxe1 {[%emt 0:00:12]} Rd2 $2 {[%emt 0:00:05]} (26... Bxf2+ $1 $14 27. Kxf2 Rd2+ 28. Re2 Rxc2) 27. Nxc5 $18 {[%emt 0:03:39]} Rxc2 {[%emt 0:00:05][%mdl 4096] Endgame KRB-KRN} 28. Re8+ {[%emt 0:00:44]} Kh7 {[%emt 0:00:07]} 29. Rb8 $1 {[%emt 0:00:13]} Bf5 {[%emt 0:04:09]} 30. Rb7 {[%emt 0:01:22]} Be6 {[%emt 0:01:58]} 31. Nxe6 {[%emt 0:01:48]} ({Much less strong is} 31. Rxa7 Rxb2 32. Nxe6 Rb1+ 33. Kh2 fxe6 $16) 31... fxe6 {[%emt 0:00:01]} 32. Rxa7 {[%emt 0:00:20]} Rxb2 {[%emt 0:00:06] [#] KR-KR} 33. Ra6 $1 {[%emt 0:00:13]} c5 {[%emt 0:02:55]} (33... e5 $16 34. a4 (34. Rxc6 Rxa2 35. h4 Kg8 $16) 34... Ra2) 34. Rc6 {[%emt 0:05:15]} (34. Rxe6 $18 {is the precise move to win. Hoping for Rc6.} Rc2 35. Re3) 34... Rxa2 {[%emt 0:00:16]} 35. Rxc5 {[%emt 0:00:11]} Kg6 {[%emt 0:00:09]} 36. g3 {[%emt 0:00:38]} e5 $2 {[%emt 0:01:03]} (36... Kf6 $16) 37. Rxe5 {[%emt 0:00:38]} Rc2 {[%emt 0:00:01]} 38. Rc5 {[%emt 0:00:16]} Kf6 {[%emt 0:00:01]} 39. Kg2 {[%emt 0:00:27]} g6 $2 {[%emt 0:00:07]} (39... Ra2 40. Rc6+ Kg5) 40. Kf3 {[%emt 0:00:00]} Ke6 {[%emt 0:00:00]} 41. Rc6+ {[%emt 0:04:15]} Kf7 {[%emt 0:00:47]} 42. g4 {[%emt 0:06:24][%cal Bg3g4,Bg4g5][%mdl 32]} Kg7 {[%emt 0:00:11]} 43. h4 {[%emt 0:00:12]} Kf7 {[%emt 0:00:21]} 44. g5 {[%emt 0:00:47]} h5 {[%emt 0:05:42]} 45. Ke3 {[%emt 0:01:03]} Rc1 {[%emt 0:00:13]} 46. Rf6+ {[%emt 0:00:36]} (46. Kd4 $142 Rd1+ 47. Kc5) 46... Ke7 {[%emt 0:00:49]} 47. Kd4 {[%emt 0:02:23]} (47. Rxg6 $142 Rxc3+ 48. Kf4) 47... Rh1 {[%emt 0:00:07]} 48. Rf4 {[%emt 0:00:43] Black must now prevent Rf6.} Kd6 {[%emt 0:00:08]} 49. Rf6+ {[%emt 0:05:23]} (49. c4 $142 Rd1+ 50. Ke4) 49... Ke7 {[%emt 0:00:26]} 50. Rxg6 {[%emt 0:00:11] White is clearly winning.} Rxh4+ {[%emt 0:00:15]} 51. Ke5 {[%emt 0:00:25]} Rc4 {[%emt 0:00:33]} 52. Rg7+ {[%emt 0:00:17]} Kf8 {[%emt 0:00:06]} 53. Rh7 {[%emt 0:00:48]} Rc5+ {[%emt 0:02:29]} 54. Kf6 {[%emt 0:01:01][%cal Rh7h8]} Rc6+ {[%emt 0:00:04] [#]} 55. Kf5 $1 {[%emt 0:00:49]} Rxc3 {[%emt 0:00:47]} 56. f4 {[%emt 0:00:24][%cal Bf2f4,Bf4f5,Bf5f6][%mdl 32]} Rh3 {[%emt 0:00:33]} 57. Kg6 {[%emt 0:00:19]} h4 {[%emt 0:00:16]} 58. f5 {[%emt 0:00:12]} Rh1 {[%emt 0:00:19]} 59. f6 {[%emt 0:00:11] Weighted Error Value: White=0.11 (very precise) /Black=0.43} 1-0

[Event "Hungarian Youth-ch U16 2022"]
[Site "Eger"]
[Date "2022.07.24"]
[Round "2.5"]
[White "Bodo, Boglarka"]
[Black "Sipos, Stefania"]
[Result "1-0"]
[ECO "C54"]
[WhiteElo "1722"]
[BlackElo "1802"]
[Annotator "NA RC COMBH"]
[PlyCount "55"]
[EventDate "2022.07.21"]
[EventType "tourn"]
[EventCountry "HUN"]
[SourceTitle "playchess.com"]
[Source "ChessBase"]
[SourceQuality "1"]
[TimeControl "40/5400+30:1800+30"]

1. e4 {[%emt 0:00:34]} e5 {[%emt 0:00:35]} 2. Nf3 {[%emt 0:00:06]} Nc6 {[%emt 0:00:04]} 3. Bc4 {[%emt 0:00:09]} Bc5 {[%emt 0:00:06]} 4. c3 {[%emt 0:00:13]} Nf6 {[%emt 0:00:13]} 5. b4 {[%emt 0:00:11]} Bb6 {[%emt 0:00:09]} 6. d3 {[%emt 0:00:17]} d6 {[%emt 0:00:27]} 7. a4 {[%emt 0:00:18]} a6 {[%emt 0:00:18]} 8. a5 {[%emt 0:00:23]} Ba7 {[%emt 0:00:13]} 9. Nbd2 {[%emt 0:00:43]} O-O {[%emt 0:00:45]} 10. O-O {[%emt 0:00:21]} Ne7 {[%emt 0:01:53]} 11. Bb3 {[%emt 0:01:25]} Ng6 {[%emt 0:01:42]} 12. Nc4 {[%emt 0:01:41]} h6 {[%emt 0:02:01]} 13. Re1 {[%emt 0:01:55]} Re8 {[%emt 0:07:02]} 14. h3 {[%emt 0:03:10]} Be6 {[%emt 0:08:55]} 15. Qc2 {[%emt 0:06:36]} Nh5 {[%emt 0:07:55]} 16. d4 {[%emt 0:03:23]} Qf6 {[%emt 0:01:27]} 17. Qd1 {[%emt 0:07:25]} Ngf4 {[%emt 0:09:08]} 18. Kh2 {[%emt 0:06:53]} Qg6 {[%emt 0:26:19]} 19. Nh4 {[%emt 0:11:12]} Qg5 {[%emt 0:00:49]} 20. g3 {[%emt 0:01:03]} Bxh3 {[%emt 0:17:24]} 21. Rg1 {[%emt 0:02:41]} Nf6 {[%emt 0:03:32]} 22. Bxf4 {[%emt 0:01:53]} exf4 {[%emt 0:05:44]} 23. Kxh3 {[%emt 0:00:18]} Rxe4 {[%emt 0:00:39]} 24. Nd2 {[%emt 0:02:00]} Ree8 {[%emt 0:00:51]} 25. Qf3 {[%emt 0:01:52]} c6 {[%emt 0:04:14]} 26. gxf4 {[%emt 0:00:58]} Qh5 {[%emt 0:00:34]} 27. Qg3 {[%emt 0:00:21]} g6 {[%emt 0:00:30]} 28. Qxg6+ {[%emt 0:00:30]} 1-0

[Event "Hungarian Youth-ch U16 2022"]
[Site "Eger"]
[Date "2022.07.24"]
[Round "2.6"]
[White "Harkai, Emma"]
[Black "Buri, Petra Zsuzsanna"]
[Result "1-0"]
[ECO "B22"]
[WhiteElo "1761"]
[BlackElo "1784"]
[Annotator "NA RC COMBH"]
[PlyCount "57"]
[EventDate "2022.07.21"]
[EventType "tourn"]
[EventCountry "HUN"]
[SourceTitle "playchess.com"]
[Source "ChessBase"]
[SourceQuality "1"]
[TimeControl "40/5400+30:1800+30"]

1. e4 {[%emt 0:00:34]} c5 {[%emt 0:00:59]} 2. c3 {[%emt 0:00:38]} Nc6 {[%emt 0:01:46]} 3. d4 {[%emt 0:01:19]} cxd4 {[%emt 0:01:40]} 4. cxd4 {[%emt 0:00:13]} d6 {[%emt 0:01:19]} 5. Nc3 {[%emt 0:02:48]} g6 {[%emt 0:04:10]} 6. Nf3 {[%emt 0:13:05]} Bg7 {[%emt 0:03:00]} 7. Be2 {[%emt 0:04:30]} e5 {[%emt 0:09:21]} 8. d5 {[%emt 0:04:42]} Nce7 {[%emt 0:05:23]} 9. Qa4+ {[%emt 0:08:31]} Bd7 {[%emt 0:07:38]} 10. Nb5 {[%emt 0:06:47]} Kf8 {[%emt 0:08:57]} 11. Qb4 Bxb5 {[%emt 0:05:39]} 12. Qxb5 {[%emt 0:13:53]} Nf6 {[%emt 0:03:06]} 13. Nd2 {[%emt 0:07:29]} Rb8 {[%emt 0:08:30]} 14. O-O {[%emt 0:03:35]} Bh6 {[%emt 0:04:42]} 15. Bd3 {[%emt 0:02:21]} Nh5 {[%emt 0:05:01]} 16. g3 {[%emt 0:05:47]} a6 {[%emt 0:03:27]} 17. Qa4 {[%emt 0:01:08]} Nf6 {[%emt 0:00:51]} 18. Qd1 {[%emt 0:02:07]} Qd7 {[%emt 0:03:10]} 19. Kg2 {[%emt 0:03:33]} Neg8 {[%emt 0:03:16]} 20. Nc4 {[%emt 0:01:52]} Bxc1 {[%emt 0:01:46]} 21. Rxc1 {[%emt 0:00:22]} h5 {[%emt 0:01:58]} 22. h4 {[%emt 0:01:25]} b6 {[%emt 0:02:53]} 23. Qd2 {[%emt 0:01:53]} Ne7 {[%emt 0:02:57]} 24. Qb4 {[%emt 0:03:02]} Nc8 {[%emt 0:03:49]} 25. Nxe5 {[%emt 0:01:24]} Qe8 {[%emt 0:01:04]} 26. Nc6 {[%emt 0:01:09]} Ra8 {[%emt 0:00:41]} 27. Qd4 {[%emt 0:01:19]} Kg7 {[%emt 0:01:43]} 28. Rfe1 {[%emt 0:01:00]} Rg8 {[%emt 0:01:54]} 29. Re3 {[%emt 0:01:11]} 1-0

[Event "Hungarian Youth-ch U16 2022"]
[Site "Eger"]
[Date "2022.07.24"]
[Round "2.7"]
[White "Kovacs, Veronika"]
[Black "Karacsonyi, Kata"]
[Result "0-1"]
[ECO "A37"]
[WhiteElo "1633"]
[BlackElo "2147"]
[Annotator "TA"]
[PlyCount "46"]
[EventDate "2022.07.21"]
[EventType "tourn"]
[EventCountry "HUN"]
[SourceTitle "playchess.com"]
[Source "ChessBase"]
[SourceQuality "1"]
[TimeControl "40/5400+30:1800+30"]

{[%evp 19,46,0,18,-6,0,0,7,5,0,-111,-112,-110,-120,-125,-133,-150,-172,-225,-188,-174,-177,-274,-279,-354,-337,-335,-332,-729,-681]} 1. Nf3 {[%emt 0:00:33]} c5 {[%emt 0:00:40]} 2. c4 {[%emt 0:00:05]} Nc6 {[%emt 0:00:12]} 3. g3 {[%emt 0:00:10]} g6 {[%emt 0:00:14]} 4. Bg2 {[%emt 0:00:09]} Bg7 {[%emt 0:00:08]} 5. Nc3 {[%emt 0:00:09]} e5 {[%emt 0:00:13]} 6. O-O {[%emt 0:00:07]} d6 {[%emt 0:00:06]} 7. d3 {[%emt 0:00:04]} Nge7 {[%emt 0:00:10]} 8. a3 {[%emt 0:00:10]} O-O {[%emt 0:01:00]} 9. Rb1 {[%emt 0:00:05]} a5 {[%emt 0:00:09]} 10. Bd2 {[%emt 0:00:14]} h6 {[%emt 0:00:56]} 11. Qa4 {[%emt 0:00:50] A37: Symmetrical English vs ...g6: 4 Bg2 Bg7 5 Nf3.} Be6 {[%emt 0:13:45]} 12. Rfc1 {[%emt 0:00:49]} f5 {[%emt 0:06:16][%cal Bf7f5,Bf5f4][%mdl 32]} 13. Ne1 {[%emt 0:07:08] The position is equal.} f4 {[%emt 0:06:37] [#]} 14. Nd5 $146 {[%emt 0:05:23]} (14. Qd1 $11) ({Predecessor:} 14. Nc2 Rf7 15. Qb5 Bd7 16. Qb3 Kh7 17. Ne4 a4 18. Qa2 Be6 19. b4 b6 20. b5 {1-0 (54) Csom,I-Pogats,J Budapest 1972}) 14... Nd4 $17 {[%emt 0:09:32] [#] Strongly threatening ...fxg3.} 15. Qd1 {[%emt 0:04:52]} Nxd5 {[%emt 0:09:38]} 16. cxd5 {[%emt 0:03:51]} Bg4 {[%emt 0:03:01]} 17. f3 {[%emt 0:05:20]} Bd7 {[%emt 0:01:28] 0x0.001e3abc14dcdp-1022s more active pieces. The white rooks are badly placed.} 18. b3 {[%emt 0:29:09]} (18. e3 {is a better defense.} fxe3 19. Bxe3) 18... a4 {[%emt 0:05:27]} 19. b4 {[%emt 0:01:27]} b6 {[%emt 0:00:50]} 20. gxf4 {[%emt 0:19:44]} (20. e3 $142 Nb3 21. Rc2) 20... exf4 $19 {[%emt 0:01:46]} 21. Bc3 {[%emt 0:02:06]} Rf5 {[%emt 0:17:50]} 22. bxc5 {[%emt 0:12:16]} dxc5 {[%emt 0:01:50] [#] ...Rh5 is the strong threat.} 23. Ba1 $2 {[%emt 0:04:04]} (23. Nc2 Nxe2+ 24. Qxe2 Bxc3 25. d4) 23... Rh5 {[%emt 0:04:57] Black took control after the opening.  Weighted Error Value: White=0.64/Black=0.08 (flawless)} 0-1

[Event "Hungarian Youth-ch U16 2022"]
[Site "Eger"]
[Date "2022.07.25"]
[Round "3.1"]
[White "Kocsmar, Akos"]
[Black "Fule, Simon"]
[Result "1/2-1/2"]
[ECO "E91"]
[WhiteElo "2061"]
[BlackElo "2271"]
[Annotator "TA"]
[PlyCount "48"]
[EventDate "2022.07.21"]
[EventType "tourn"]
[EventCountry "HUN"]
[SourceTitle "playchess.com"]
[Source "ChessBase"]
[SourceQuality "1"]
[TimeControl "40/5400+30:1800+30"]

{[%evp 21,48,75,69,79,68,86,70,81,75,60,75,71,61,69,69,62,47,53,64,0,0,0,6,0,0,0,0,0,45]} 1. d4 {[%emt 0:00:32]} Nf6 {[%emt 0:00:36]} 2. c4 {[%emt 0:00:04]} d6 {[%emt 0:00:07]} 3. Nf3 {[%emt 0:00:39]} g6 {[%emt 0:00:19]} 4. Nc3 {[%emt 0:00:06]} Bg7 {[%emt 0:00:11]} 5. e4 {[%emt 0:00:05]} O-O {[%emt 0:00:22]} 6. Be2 {[%emt 0:00:04]} Nbd7 {[%emt 0:01:00]} 7. O-O {[%emt 0:00:38]} e5 {[%emt 0:00:29]} 8. Be3 {[%emt 0:00:06]} c6 {[%emt 0:01:03]} 9. d5 {[%emt 0:00:21]} c5 {[%emt 0:00:48]} 10. Ne1 {[%emt 0:00:09]} Ne8 {[%emt 0:00:38]} 11. g4 {[%emt 0:01:54]} f5 {[%emt 0:06:32]} 12. exf5 {[%emt 0:00:07] White is more active. E94: King's Indian: Classical: 6 Be2 e5 7 0-0: Various Black 7th moves.} gxf5 {[%emt 0:00:07]} 13. gxf5 {[%emt 0:00:01]} Nb6 {[%emt 0:00:41]} 14. Kh1 $1 {[%emt 0:00:29] White is slightly better. 14.Kh1 is better than 14.Nf3.} Bxf5 {[%emt 0:00:21]} 15. Rg1 {15.Nf3 is vanishing.} Kh8 {[%emt 0:01:02]} 16. Rg5 {[%emt 0:00:15]} Qd7 {[%emt 0:02:08]} 17. Ng2 {[%emt 0:01:11] Hoping for Nh4.} Bf6 {[%emt 0:01:32]} 18. Rg3 {[%emt 0:00:05] [#]} Ng7 $146 {[%emt 0:07:57]} ({Predecessor:} 18... Nc8 19. Bh6 Rg8 20. Rxg8+ Kxg8 21. Ne3 Bg6 22. Bg4 Qd8 23. Be6+ Kh8 24. Qf3 Bg7 25. Bxg7+ Nxg7 26. Rg1 Ne7 27. Ne4 Bxe4 28. Qxe4 Qf8 29. Ng4 Ng6 30. Rg3 {½-½ (30) Karavade,E (2348)-Fule,S (2297) Budapest 2022}) 19. Bg5 {[%emt 0:42:37]} Nc8 {[%emt 0:21:27][%cal Bb6c8,Bc8e7,Be7g6][%mdl 32]} 20. Nh4 {[%emt 0:02:51]} ({Better is} 20. Qd2 $14) 20... Ne7 $1 $11 {[%emt 0:08:49] The position is equal.} 21. Qd2 {[%emt 0:04:50]} Ng6 22. Bxf6 {[%emt 0:06:44]} Rxf6 {[%emt 0:10:12]} 23. Qg5 {[%emt 0:00:12]} Raf8 {[%emt 0:02:03]} 24. Rag1 {[%emt 0:00:24]} R8f7 {[%emt 0:15:56] Weighted Error Value: White=0.11 (very precise) /Black=0.01 (flawless)} 1/2-1/2

[Event "Hungarian Youth-ch U16 2022"]
[Site "Eger"]
[Date "2022.07.25"]
[Round "3.2"]
[White "Muranyi, Peter"]
[Black "Szikszai, Bertalan"]
[Result "0-1"]
[ECO "D35"]
[WhiteElo "2018"]
[BlackElo "2153"]
[Annotator "TA"]
[PlyCount "66"]
[EventDate "2022.07.21"]
[EventType "tourn"]
[EventCountry "HUN"]
[SourceTitle "playchess.com"]
[Source "ChessBase"]
[SourceQuality "1"]
[TimeControl "40/5400+30:1800+30"]

{[%evp 12,66,9,10,35,31,37,12,8,22,14,0,0,-10,-8,-8,-8,-12,-10,-16,-11,-15,-12,-7,-12,-12,0,-49,-38,-41,-38,-123,-115,-128,-90,-89,-20,-95,-50,-27,-37,-300,-266,-307,-293,-362,-354,-422,-429,-399,-336,-641,-624,-577,-553,-541,-534]} 1. d4 {[%emt 0:00:33]} Nf6 {[%emt 0:00:38]} 2. c4 {[%emt 0:00:10]} e6 {[%emt 0:00:06]} 3. Nc3 {[%emt 0:00:07]} d5 {[%emt 0:00:11]} 4. cxd5 {[%emt 0:00:26]} exd5 {[%emt 0:00:06]} 5. Bg5 {[%emt 0:00:12]} c6 {[%emt 0:00:10]} 6. e3 {[%emt 0:00:15]} h6 {[%emt 0:00:16]} 7. Bh4 {[%emt 0:04:54]} Be6 {[%emt 0:01:05] D35: Queen's Gambit Declined: Exchange Variation.} 8. Bd3 {[%emt 0:00:16]} Nbd7 {[%emt 0:00:13]} 9. Qc2 {[%emt 0:04:31]} g5 {[%emt 0:01:10] The position is equal.} 10. Bg3 {[%emt 0:00:11]} Nh5 {[%emt 0:02:11]} 11. Nge2 {[%emt 0:08:05]} Nxg3 {[%emt 0:02:42]} 12. Nxg3 {[%emt 0:00:13]} h5 {[%emt 0:02:06][%cal Bh6h5,Bh5h4][%mdl 32]} 13. O-O-O {[%emt 0:03:17]} h4 {[%emt 0:01:26]} 14. Nf5 {[%emt 0:05:14]} Qc7 {[%emt 0:03:07]} 15. Kb1 {[%emt 0:21:06]} O-O-O {[%emt 0:04:12]} 16. g4 {[%emt 0:11:41]} Kb8 {[%emt 0:12:24]} 17. h3 {[%emt 0:05:37]} Nb6 {[%emt 0:01:42] [#]} 18. Rhf1 $146 {[%emt 0:08:04]} ({Predecessor:} 18. Ka1) 18... f6 {[%emt 0:17:53]} 19. f4 {[%emt 0:02:01]} (19. a3 $11) 19... Bxf5 $15 {[%emt 0:04:50]} 20. Bxf5 {[%emt 0:06:32]} Nc4 {[%emt 0:02:18]} 21. Qd3 {[%emt 0:03:36] [#]} (21. Rd3 $15) 21... Ba3 $1 $17 {[%emt 0:07:01][%mdl 512] Black is more active.} 22. Rf2 {[%emt 0:05:27]} (22. Na4 Rhe8) 22... Qb6 {[%emt 0:14:56][%cal Rc4b2]} 23. Na4 {[%emt 0:00:10]} Qa5 {[%emt 0:01:04]} (23... Qb5 $17 24. b3 Rhe8) 24. b3 {[%emt 0:01:01]} (24. Qb3 $11 Bd6 25. fxg5 fxg5 26. e4) 24... gxf4 {[%emt 0:03:40]} 25. Rxf4 {[%emt 0:01:58]} Rhe8 $36 {[%emt 0:01:18][%mdl 2048] Black fights for an advantage.} 26. e4 {[%emt 0:00:44][%mdl 8192] This move loses the game for White.} ({White must play} 26. Rf3 $15) 26... Bd6 $19 {[%emt 0:00:47]} 27. Rff1 {[%emt 0:01:14]} Na3+ {[%emt 0:02:30]} 28. Kb2 {[%emt 0:00:47]} dxe4 {[%emt 0:02:42]} 29. Bxe4 {[%emt 0:00:22]} Nb5 {[%emt 0:00:17] [#] Threatens to win with ...Ba3+.} 30. Rf5 {[%emt 0:03:05]} Qb4 {[%emt 0:00:45][%cal Od6e5] aiming for ...Be5!} 31. Nc3 $2 {[%emt 0:02:46]} (31. Rxb5 Qxb5 32. Nc3) 31... Nxc3 {[%emt 0:02:34] Black is clearly winning.} 32. Qxc3 {[%emt 0:00:27]} Qxc3+ {[%emt 0:00:39]} 33. Kxc3 {[%emt 0:00:02]} Rxe4 {[%emt 0:00:10] Weighted Error Value: White=0.56/Black=0.11 (very precise)} 0-1

[Event "Hungarian Youth-ch U16 2022"]
[Site "Eger"]
[Date "2022.07.25"]
[Round "3.3"]
[White "Tran, David"]
[Black "Pasztor, Balazs"]
[Result "1/2-1/2"]
[ECO "B51"]
[WhiteElo "2090"]
[BlackElo "2336"]
[Annotator "TA"]
[PlyCount "64"]
[EventDate "2022.07.21"]
[EventType "tourn"]
[EventCountry "HUN"]
[SourceTitle "playchess.com"]
[Source "ChessBase"]
[SourceQuality "1"]
[TimeControl "40/5400+30:1800+30"]

{[%evp 9,64,3,4,0,32,14,13,18,34,45,58,9,12,0,17,0,0,0,0,0,2,-30,5,-37,0,0,18,14,72,64,81,94,89,88,94,18,97,63,63,35,31,0,8,0,0,0,0,-19,-14,-17,-2,-10,74,17,95,86,120]} 1. e4 {[%emt 0:00:42]} c5 {[%emt 0:01:07]} 2. Nf3 {[%emt 0:00:58]} d6 {[%emt 0:00:07]} 3. Bb5+ {[%emt 0:00:10]} Nd7 {[%emt 0:00:07]} 4. O-O {[%emt 0:01:48]} a6 {[%emt 0:00:27]} 5. Bxd7+ {[%emt 0:00:42]} Bxd7 {[%emt 0:00:09]} 6. b3 {[%emt 0:00:35] B51: Sicilian: Moscow Variation (3 Bb5+) without 3...Bd7.} e5 {[%emt 0:06:48]} 7. Re1 {[%emt 0:08:24]} Nf6 {[%emt 0:10:25]} 8. c3 {[%emt 0:04:31] The position is equal.} Qc7 {[%emt 0:11:35]} 9. d4 {[%emt 0:04:05]} Be7 {[%emt 0:03:15]} 10. Nbd2 {[%emt 0:11:29] [#]} (10. dxe5 $14 {deserves consideration.} dxe5 11. c4) 10... b5 $146 {[%emt 0:04:41]} ({Predecessor:} 10... O-O 11. dxe5 dxe5 12. Nc4 Rad8 13. Qc2 Bc6 14. Ncxe5 Bxe4 15. Rxe4 Nxe4 16. Qxe4 Rd1+ 17. Ne1 Bf6 18. Qe2 Rxe1+ 19. Qxe1 {½-½ (19) Backes,M (1566)-Schuenemann,R (1649) Homburg 2010}) 11. Nf1 {[%emt 0:07:26]} O-O {[%emt 0:01:55]} 12. Ng3 {[%emt 0:01:55]} Rfe8 {[%emt 0:04:49]} 13. h3 {[%emt 0:07:42]} h6 {[%emt 0:04:25]} 14. Be3 {[%emt 0:05:22]} Bf8 {[%emt 0:03:18]} 15. Qd3 {[%emt 0:05:34]} Rac8 {[%emt 0:04:11]} 16. Rac1 {[%emt 0:03:12]} Qa5 {[%emt 0:10:54]} 17. Qb1 {[%emt 0:02:27]} exd4 {[%emt 0:09:56]} 18. cxd4 {[%emt 0:01:26]} c4 {[%emt 0:00:52]} (18... b4 $11) 19. d5 $16 {[%emt 0:02:49]} cxb3 {[%emt 0:01:59]} 20. axb3 {[%emt 0:00:29]} Rxc1 {[%emt 0:04:38]} 21. Rxc1 {[%emt 0:00:09]} Rc8 {[%emt 0:01:11]} 22. Bd4 {[%emt 0:04:51]} (22. Rxc8 $16 Bxc8 23. Nd4) 22... Be7 {[%emt 0:01:06]} (22... Rxc1+ $11 23. Qxc1 Be7) 23. Rxc8+ {[%emt 0:01:35]} Bxc8 {[%emt 0:00:02]} 24. Qc2 {[%emt 0:01:19]} Bd7 {[%emt 0:00:58]} 25. Nd2 {[%emt 0:06:18]} Bd8 {[%emt 0:03:39]} 26. Qc3 {[%emt 0:01:01]} Qxc3 {[%emt 0:02:50]} 27. Bxc3 {[%emt 0:00:01]} a5 {[%emt 0:00:12]} 28. Bd4 {[%emt 0:00:25]} Kf8 {[%emt 0:01:14]} 29. f3 {[%emt 0:02:02]} g6 {[%emt 0:01:46]} 30. Ne2 {[%emt 0:01:28]} b4 {[%emt 0:02:20] [#]} ({Resist} 30... a4 31. bxa4 bxa4 32. Nc3 $14) (30... Ng8 $11) 31. Kf2 {[%emt 0:01:29]} ({Better is} 31. Be3 $1 $16) 31... h5 {[%emt 0:01:18]} (31... Bb5 $11 {keeps the balance.}) 32. Nc4 {[%emt 0:01:38]} Ne8 {[%emt 0:01:47] Weighted Error Value: White=0.19 (very precise) /Black=0.27 (precise)} 1/2-1/2